bitfinex-derivatives/quotes_SOLF0:USTF0_20241012
["timestamp","ask_amount","ask_price","bid_price","bid_amount"]
[1728730018402,8.44,146.38,146.34,8.44]
[1728730018694,8.44,146.39,146.37,3.4168]
[1728730019998,8.44,146.39,146.33,0.12502]
[1728730020199,8.44,146.39,146.36,3.4169]
[1728730020498,11.8564,146.39,146.36,3.4169]
[1728730020796,8.44,146.37,146.33,8.56502]
[1728730020998,8.44,146.37,146.35,3.4171]
[1728730021394,8.44,146.36,146.35,3.4171]
[1728730021596,8.44,146.36,146.33,3.54262]
[1728730021799,8.44,146.35,146.33,0.12502]
[1728730023398,8.44,146.35,146.33,3.54272]
[1728730023693,8.44,146.34,146.33,3.54272]
[1728730024100,3.39880561,146.39,146.33,0.12502]
[1728730024286,3.4956,146.44,146.33,0.12502]
[1728730024597,8.44,146.36,146.34,3.4174]
[1728730027698,3.4168,146.37,146.34,3.4174]
[1728730027900,11.8568,146.37,146.34,3.4174]
[1728730028492,3.4168,146.37,146.34,3.4174]
[1728730028695,11.8568,146.37,146.34,3.4174]
[1728730031704,8.44,146.36,146.34,3.4174]
[1728730033407,3.4168,146.37,146.34,3.4174]
[1728730033607,3.39198291,146.41,146.34,3.4174]
[1728730033608,8.44,146.36,146.34,3.4174]
[1728730036415,11.857,146.36,146.33,3.54272]
[1728730036607,8.44,146.36,146.33,3.54272]
[1728730037108,8.44,146.35,146.33,3.54272]
[1728730037509,11.8573,146.35,146.33,0.12502]
[1728730039210,8.44,146.34,146.33,0.12502]
[1728730039806,11.8575,146.34,146.33,0.12502]
[1728730041912,3.4189,146.29,146.27,0.12502]
[1728730042109,8.44,146.28,146.27,0.12502]
[1728730043210,11.8589,146.28,146.27,0.12502]
[1728730046717,3.4189,146.28,146.27,0.12502]
[1728730046918,11.8589,146.28,146.27,0.12502]
[1728730047119,8.44,146.28,146.27,0.12502]
[1728730047617,3.4188,146.29,146.27,0.12502]
[1728730047817,8.44,146.28,146.27,0.12502]
[1728730050625,3.4188,146.29,146.27,0.12502]
[1728730050920,8.44,146.28,146.27,0.12502]
[1728730054626,8.44,146.28,146.27,3.54412]
[1728730055524,66.51479146,146.32,146.28,3.4188]
[1728730055820,8.44,146.29,146.28,3.4188]
[1728730058023,8.44,146.3,146.28,3.4188]
[1728730058420,63.09679146,146.32,146.27,0.12502]
[1728730058620,8.44,146.31,146.3,3.4183]
[1728730062122,71.53679146,146.32,146.3,3.4183]
[1728730062623,8.44,146.33,146.28,8.44]
[1728730063018,8.44,146.31,146.28,8.44]
[1728730066632,8.44,146.31,146.27,8.56502]
[1728730069940,8.44,146.31,146.27,0.12502]
[1728730070134,8.44,146.3,146.27,0.12502]
[1728730073151,8.44,146.31,146.27,8.56502]
[1728730076043,11.8582,146.31,146.27,8.56502]
[1728730077148,11.8582,146.31,146.27,0.12502]
[1728730078248,8.44,146.3,146.27,0.12502]
[1728730078640,11.8582,146.31,146.27,0.12502]
[1728730079343,8.44,146.31,146.27,0.12502]
[1728730081048,11.8583,146.31,146.27,0.12502]
[1728730081643,93.06050468,146.37,146.29,8.44]
[1728730081846,8.44,146.34,146.29,8.44]
[1728730082943,11.8577,146.34,146.29,8.44]
[1728730086444,8.44,146.33,146.29,8.44]
[1728730086646,8.44,146.32,146.27,8.56502]
[1728730087350,3.4179,146.33,146.27,8.56502]
[1728730087351,8.44,146.31,146.27,8.56502]
[1728730087949,8.44,146.28,146.27,0.12502]
[1728730092350,11.8589,146.28,146.27,0.12502]
[1728730110069,8.44,146.28,146.21,0.12502]
[1728730110277,8.44,146.24,146.21,0.12502]
[1728730111371,3.4203,146.22,146.21,0.12502]
[1728730111669,6.96999216,146.32,146.21,0.12502]
[1728730111873,8.44,146.22,146.21,0.12502]
[1728730113176,11.8603,146.22,146.21,0.12502]
[1728730113370,3.4203,146.22,146.21,0.12502]
[1728730113667,11.8603,146.22,146.21,0.12502]
[1728730114671,3.4203,146.22,146.21,0.12502]
[1728730114975,11.8603,146.22,146.21,0.12502]
[1728730115570,3.4203,146.22,146.21,0.12502]
[1728730115771,11.8603,146.22,146.21,0.12502]
[1728730116670,3.4203,146.22,146.21,0.12502]
[1728730116874,11.8603,146.22,146.21,0.12502]
[1728730117479,3.4203,146.22,146.21,0.12502]
[1728730117673,11.8603,146.22,146.21,0.12502]
[1728730118782,3.37402442,146.24,146.16,6.26146634]
[1728730118979,8.44,146.18,146.16,6.26146634]
[1728730120575,3.4207,146.21,146.16,6.26146634]
[1728730120776,8.44,146.19,146.16,6.26146634]
[1728730120975,3.4207,146.21,146.16,6.26146634]
[1728730121173,8.44,146.19,146.16,6.26146634]
[1728730122474,3.43389,146.24,146.16,6.26146634]
[1728730122676,0.12502,146.27,146.23,8.44]
[1728730122985,1.3975,146.36,146.26,8.44]
[1728730123180,8.44,146.31,146.26,8.44]
[1728730123581,8.44,146.3,146.26,8.44]
[1728730123789,8.44,146.3,146.25,11.93957886]
[1728730123983,8.44,146.3,146.25,8.44]
[1728730124490,8.44,146.3,146.27,3.419]
[1728730125291,8.44,146.3,146.25,8.44]
[1728730125492,8.44,146.29,146.25,11.8595]
[1728730125896,8.44,146.28,146.25,3.4195]
[1728730126995,8.44,146.28,146.24,16.0272]
[1728730127190,3.4187,146.29,146.24,12.6074]
[1728730127191,11.8587,146.29,146.24,12.6074]
[1728730127494,3.4187,146.29,146.25,8.44]
[1728730128396,3.4187,146.29,146.25,11.8595]
[1728730129698,3.4187,146.29,146.27,8.44]
[1728730131699,3.4187,146.29,146.25,11.8596]
[1728730133505,3.4187,146.29,146.27,8.44]
[1728730134191,3.4187,146.29,146.26,3.4194]
[1728730134391,3.4187,146.29,146.26,11.8594]
[1728730140199,3.4187,146.29,146.27,8.44]
[1728730140401,0.12502,146.33,146.28,11.8588]
[1728730140597,8.56502,146.33,146.28,11.8588]
[1728730141407,3.4182,146.31,146.28,11.8588]
[1728730144804,8.56502,146.33,146.28,8.44]
[1728730145006,0.12502,146.33,146.3,3.4184]
[1728730145506,0.12502,146.33,146.29,8.44]
[1728730145709,3.54302,146.33,146.29,11.8586]
[1728730145910,3.54302,146.33,146.29,8.44]
[1728730146112,3.418,146.32,146.29,11.8586]
[1728730146507,3.418,146.32,146.29,3.4186]
[1728730151215,3.418,146.32,146.29,11.8586]
[1728730156210,3.418,146.32,146.29,3.4186]
[1728730156412,3.4185,146.3,146.27,3.4191]
[1728730156609,8.44,146.32,146.24,7.66392851]
[1728730156813,8.44,146.32,146.27,8.44]
[1728730157013,3.4186,146.3,146.27,8.44]
[1728730157209,3.4186,146.3,146.28,8.44]
[1728730158420,8.44,146.32,146.28,8.44]
[1728730158613,3.4184,146.31,146.28,8.44]
[1728730159420,3.4184,146.31,146.28,11.8589]
[1728730162119,3.4184,146.31,146.29,8.44]
[1728730162923,3.4184,146.31,146.28,11.8589]
[1728730163625,3.418,146.32,146.29,11.8586]
[1728730170632,3.418,146.32,146.29,3.4186]
[1728730170931,3.418,146.32,146.29,11.8586]
[1728730181136,0.12502,146.33,146.3,8.44]
[1728730181340,0.12502,146.33,146.32,3.418]
[1728730181547,3.4173,146.36,146.32,8.44]
[1728730181846,3.4173,146.36,146.27,0.12502]
[1728730181847,3.4173,146.36,146.34,8.44]
[1728730184551,0.12502,146.39,146.34,8.44]
[1728730184748,3.4169,146.37,146.34,11.8575]
[1728730188448,8.44,146.38,146.34,8.44]
[1728730188753,3.4171,146.36,146.34,8.44]
[1728730189146,3.4171,146.36,146.33,4.7291]
[1728730189147,8.56502,146.39,146.35,8.44]
[1728730190043,3.4167,146.38,146.35,11.8572]
[1728730194350,8.44,146.38,146.33,4.7291]
[1728730194555,8.44,146.38,146.34,8.44]
[1728730194751,3.417,146.37,146.34,8.44]
[1728730195861,3.417,146.37,146.35,8.44]
[1728730197656,8.44,146.38,146.33,4.7291]
[1728730197862,3.4172,146.36,146.34,8.44]
[1728730199861,3.4172,146.36,146.35,8.44]
[1728730203470,3.4168,146.38,146.35,8.44]
[1728730203664,0.12502,146.39,146.35,8.44]
[1728730203965,0.12502,146.39,146.37,8.44]
[1728730204169,3.4166,146.38,146.37,8.44]
[1728730207370,3.54142,146.39,146.37,8.44]
[1728730209470,3.4166,146.38,146.37,8.44]
[1728730211963,0.12502,146.39,146.37,8.44]
[1728730212164,0.12502,146.39,146.38,8.44]
[1728730212768,0.12502,146.39,146.38,11.8566]
[1728730221877,0.12502,146.39,146.38,8.44]
[1728730226783,0.12502,146.39,146.33,1.3114]
[1728730226982,0.12502,146.39,146.36,8.44]
[1728730227376,3.4166,146.38,146.36,8.44]
[1728730227581,0.12502,146.39,146.36,8.44]
[1728730227782,0.12502,146.39,146.37,8.44]
[1728730227978,3.54142,146.39,146.37,8.44]
[1728730228479,0.12502,146.39,146.38,11.8566]
[1728730230985,8.56502,146.45,146.4,3.4161]
[1728730231185,0.12502,146.45,146.41,8.44]
[1728730231381,0.12502,146.45,146.42,8.44]
[1728730231579,3.54012,146.45,146.42,8.44]
[1728730232390,0.12502,146.45,146.44,8.44]
[1728730235178,0.12502,146.45,146.4,2.6965]
[1728730235387,3.54002,146.45,146.42,11.8556]
[1728730235888,8.56502,146.45,146.4,2.6965]
[1728730236089,8.44,146.44,146.4,2.6965]
[1728730236391,11.8552,146.44,146.41,3.4158]
[1728730236692,11.8552,146.44,146.4,11.1365]
[1728730237292,11.8552,146.44,146.4,14.5525]
[1728730237496,3.4156,146.43,146.4,11.1365]
[1728730237694,3.4156,146.43,146.4,9.8413]
[1728730239490,3.4156,146.43,146.4,13.2574]
[1728730240494,3.4156,146.43,146.4,11.8561]
[1728730240793,3.4157,146.42,146.39,11.8563]
[1728730243396,3.4155,146.43,146.39,8.44]
[1728730243693,3.4155,146.43,146.4,3.4161]
[1728730245397,3.4155,146.43,146.4,11.8561]
[1728730245895,3.54002,146.45,146.42,11.8555]
[1728730246496,3.54002,146.45,146.43,8.44]
[1728730247400,0.12502,146.45,146.43,11.8554]
[1728730255307,3.54012,146.45,146.42,3.4155]
[1728730255508,3.54012,146.45,146.41,9.7466]
[1728730255808,3.54012,146.45,146.42,3.4156]
[1728730258410,0.12502,146.45,146.43,3.4154]
[1728730277024,0.12502,146.45,146.43,11.8554]
[1728730277825,0.12502,146.45,146.43,8.44]
[1728730278125,0.12502,146.45,146.44,3.4152]
[1728730278721,0.12502,146.45,146.44,16.75729239]
[1728730280221,0.12502,146.45,146.44,8.31729239]
[1728730280919,0.12502,146.45,146.44,3.4152]
[1728730281521,0.12502,146.45,146.44,8.3202388]
[1728730281821,3.9891,146.54,146.44,8.3202388]
[1728730281822,6.8225,146.62,146.5,3.4138]
[1728730282022,8.44,146.54,146.5,16.7588388]
[1728730282923,11.853,146.54,146.5,16.7588388]
[1728730284321,3.4131,146.53,146.5,16.7588388]
[1728730284923,8.44,146.53,146.5,4.9050388]
[1728730285126,11.8531,146.53,146.5,8.3188388]
[1728730285425,11.8531,146.53,146.5,3.4138]
[1728730285622,11.8531,146.53,146.5,8.29430131]
[1728730286623,8.44,146.54,146.5,16.73430131]
[1728730286824,8.44,146.55,146.5,16.73430131]
[1728730287529,3.4128,146.55,146.5,16.73430131]
[1728730288926,8.44,146.56,146.5,11.8538]
[1728730289127,11.8525,146.56,146.5,18.03889537]
[1728730289726,3.4125,146.56,146.5,13.1684]
[1728730290232,3.4125,146.56,146.5,14.5158]
[1728730290835,3.4125,146.56,146.5,19.38226963]
[1728730291234,3.4125,146.56,146.5,15.96846963]
[1728730291429,3.53722,146.57,146.54,8.44]
[1728730293333,3.53722,146.57,146.52,3.4133]
[1728730293537,3.53722,146.57,146.54,8.44]
[1728730299437,3.4124,146.56,146.5,2.662]
[1728730299640,3.4124,146.56,146.54,8.44]
[1728730302139,3.4124,146.56,146.5,2.662]
[1728730302348,0.12502,146.57,146.53,8.44]
[1728730303044,3.4126,146.55,146.53,8.44]
[1728730303639,3.4124,146.56,146.53,8.44]
[1728730307943,3.4124,146.56,146.55,8.44]
[1728730311741,3.4124,146.56,146.53,8.44]
[1728730313747,3.4124,146.56,146.54,8.44]
[1728730315345,0.12502,146.57,146.54,8.44]
[1728730315545,3.53722,146.57,146.54,8.44]
[1728730319952,0.12502,146.57,146.54,8.44]
[1728730320153,3.4124,146.56,146.54,8.44]
[1728730320351,3.4124,146.56,146.53,8.44]
[1728730328362,0.12502,146.57,146.53,8.44]
[1728730329063,3.53732,146.57,146.53,8.44]
[1728730331864,3.4124,146.56,146.53,8.44]
[1728730332565,3.4128,146.55,146.52,8.44]
[1728730333355,3.4128,146.55,146.52,11.8533]
[1728730335560,3.4128,146.55,146.51,1.3094]
[1728730335759,8.44,146.55,146.5,2.662]
[1728730336066,8.44,146.55,146.5,11.102]
[1728730336466,8.44,146.55,146.5,1.3146]
[1728730336665,8.44,146.55,146.5,8.44]
[1728730336965,3.4133,146.52,146.5,8.44]
[1728730338258,3.4133,146.52,146.46,4.0121]
[1728730338462,3.4133,146.52,146.49,8.44]
[1728730338662,3.4136,146.51,146.49,8.44]
[1728730338870,8.44,146.51,146.48,8.44]
[1728730339265,8.44,146.51,146.47,8.44]
[1728730340165,8.44,146.51,146.46,2.7086]
[1728730340368,8.44,146.51,146.46,11.1486]
[1728730340563,8.44,146.51,146.46,9.8475]
[1728730340871,8.44,146.5,146.46,9.8475]
[1728730341565,3.4142,146.49,146.46,9.8475]
[1728730342368,3.4142,146.49,146.46,1.4075]
[1728730342563,11.8539,146.5,146.46,1.4075]
[1728730344968,8.44,146.5,146.46,1.4075]
[1728730345172,3.414,146.49,146.46,1.4075]
[1728730345375,8.44,146.49,146.46,1.4075]
[1728730345582,8.44,146.49,146.45,0.12502]
[1728730345879,8.44,146.48,146.45,0.12502]
[1728730346075,11.8544,146.48,146.45,0.12502]
[1728730351287,8.44,146.46,146.45,0.12502]
[1728730354089,3.4144,146.48,146.45,0.12502]
[1728730354287,8.44,146.47,146.45,0.12502]
[1728730354685,3.35380458,146.51,146.45,0.12502]
[1728730354894,8.44,146.47,146.45,0.12502]
[1728730359289,3.39341376,146.5,146.45,0.12502]
[1728730359489,8.44,146.48,146.45,0.12502]
[1728730360096,8.44,146.47,146.45,0.12502]
[1728730365890,3.4142,146.49,146.45,0.12502]
[1728730366097,8.44,146.46,146.45,0.12502]
[1728730368998,8.44,146.47,146.45,0.12502]
[1728730373907,2.6786,146.56,146.46,8.44]
[1728730374101,2.6786,146.56,146.48,8.44]
[1728730374102,8.44,146.52,146.48,8.44]
[1728730374901,8.44,146.52,146.5,3.4137]
[1728730380012,1.3031,146.56,146.49,11.80768805]
[1728730380212,8.44,146.54,146.49,11.80768805]
[1728730380910,3.4127,146.55,146.49,11.80768805]
[1728730381111,8.44,146.54,146.49,11.80768805]
[1728730381306,3.4125,146.56,146.5,8.44]
[1728730381616,8.44,146.55,146.5,8.44]
[1728730382815,8.44,146.55,146.5,11.84147191]
[1728730383313,3.4125,146.56,146.5,11.84147191]
[1728730383613,11.8525,146.56,146.51,8.44]
[1728730384907,11.8525,146.56,146.51,11.83737581]
[1728730385912,8.44,146.56,146.51,11.83737581]
[1728730386219,11.8526,146.55,146.5,8.44]
[1728730395825,3.4129,146.54,146.5,8.44]
[1728730396222,8.44,146.55,146.5,8.44]
[1728730396523,3.4131,146.53,146.5,8.44]
[1728730396724,3.4131,146.53,146.49,8.44]
[1728730396921,11.8529,146.54,146.49,8.44]
[1728730398519,3.4129,146.54,146.5,8.44]
[1728730408027,8.44,146.55,146.5,8.44]
[1728730409633,3.4128,146.54,146.5,8.44]
[1728730415247,8.44,146.55,146.5,8.44]
[1728730415445,11.8528,146.55,146.5,8.44]
[1728730415846,8.44,146.55,146.5,8.44]
[1728730416045,3.4129,146.54,146.5,8.44]
[1728730418448,8.44,146.55,146.5,8.44]
[1728730418652,11.8526,146.55,146.5,8.44]
[1728730421443,0.12502,146.57,146.52,8.44]
[1728730421650,3.53732,146.57,146.53,8.44]
[1728730421846,3.53732,146.57,146.52,8.44]
[1728730426951,137.77100417,146.71,146.56,8.44]
[1728730427254,0.12502,146.81,146.56,8.44]
[1728730427255,0.12502,146.93,146.62,11.58011648]
[1728730427453,8.44,146.88,146.63,6.19240364]
[1728730427669,62.85176366,146.92,146.81,8.44]
[1728730427953,62.85176366,146.92,146.75,3.4078]
[1728730427954,8.44,146.86,146.75,3.4078]
[1728730428162,62.85176366,146.92,146.71,61.91432375]
[1728730428458,8.44,146.88,146.71,61.91432375]
[1728730428659,8.44,146.88,146.8,8.44]
[1728730429049,3.4052,146.87,146.71,65.29385375]
[1728730429356,8.44,146.86,146.8,8.44]
[1728730429561,8.44,146.84,146.78,8.44]
[1728730430459,8.44,146.84,146.71,65.29385375]
[1728730430663,8.44,146.83,146.72,4.90109702]
[1728730430858,8.44,146.83,146.76,8.44]
[1728730431752,3.4048,146.89,146.81,8.44]
[1728730431955,8.44,146.87,146.75,0.12502]
[1728730432150,1.25219694,146.88,146.75,0.12502]
[1728730432151,8.44,146.83,146.75,0.12502]
[1728730432362,3.4059,146.84,146.81,0.12502]
[1728730432951,3.4061,146.83,146.75,0.12502]
[1728730433559,8.44,146.81,146.75,8.56502]
[1728730434053,0.12502,146.87,146.77,8.44]
[1728730434054,8.44,146.82,146.77,8.44]
[1728730434956,3.4061,146.83,146.76,3.4076]
[1728730435149,8.44,146.81,146.76,3.4076]
[1728730435354,8.44,146.81,146.75,8.56502]
[1728730435558,3.4059,146.84,146.77,3.4075]
[1728730435752,8.44,146.82,146.77,3.4075]
[1728730437055,3.53042,146.87,146.81,11.8465]
[1728730437262,8.56502,146.87,146.83,8.44]
[1728730437656,8.56502,146.87,146.82,3.4063]
[1728730437863,8.44,146.86,146.82,3.4063]
[1728730438458,0.12502,146.87,146.82,3.4063]
[1728730439163,0.12502,146.87,146.78,13.08]
[1728730439663,0.12502,146.87,146.82,3.4063]
[1728730440064,0.12502,146.87,146.78,13.08]
[1728730440759,0.12502,146.87,146.79,3.32683891]
[1728730441269,0.12502,146.87,146.8,13.08]
[1728730441765,0.12502,146.87,146.84,3.4058]
[1728730442867,0.12502,146.87,146.82,3.4061]
[1728730443561,0.12502,146.87,146.83,3.4061]
[1728730444366,0.12502,146.87,146.86,3.4054]
[1728730444563,0.12502,146.87,146.82,13.08]
[1728730445369,0.12502,146.87,146.84,3.4057]
[1728730446264,0.12502,146.87,146.83,3.4061]
[1728730447165,0.12502,146.87,146.8,13.08]
[1728730448367,0.12502,146.87,146.84,3.4058]
[1728730449466,0.12502,146.87,146.85,3.4056]
[1728730450261,0.12502,146.87,146.84,3.4058]
[1728730451173,0.12502,146.87,146.82,3.4062]
[1728730451870,3.53032,146.87,146.82,3.4062]
[1728730452065,0.12502,146.87,146.79,17.91887189]
[1728730452271,0.12502,146.87,146.79,1.4221]
[1728730452772,13.08,146.85,146.79,1.4221]
[1728730452969,3.4064,146.82,146.77,4.7702]
[1728730453471,3.4062,146.83,146.77,4.7702]
[1728730454173,3.4062,146.83,146.77,1.3629]
[1728730454471,15.8272,146.86,146.78,13.08]
[1728730454668,13.08,146.86,146.78,13.08]
[1728730455069,3.4057,146.85,146.78,13.08]
[1728730455367,13.08,146.86,146.78,13.08]
[1728730455573,3.4061,146.84,146.78,13.08]
[1728730455772,13.08,146.86,146.78,13.08]
[1728730456073,13.08,146.86,146.79,3.407]
[1728730456274,3.406,146.84,146.79,3.407]
[1728730457172,3.4061,146.83,146.79,3.407]
[1728730457579,3.4061,146.83,146.77,4.7702]
[1728730458575,3.4061,146.83,146.78,3.4072]
[1728730459575,3.4061,146.83,146.79,3.407]
[1728730460374,3.4061,146.83,146.78,8.37]
[1728730460572,8.37,146.83,146.77,1.3629]
[1728730460771,8.37,146.83,146.77,9.7329]
[1728730461173,8.37,146.83,146.78,3.4072]
[1728730461375,3.4064,146.82,146.78,3.4072]
[1728730461667,11.7764,146.82,146.77,3.4075]
[1728730461866,11.7764,146.82,146.77,11.7775]
[1728730462067,8.37,146.82,146.77,3.4075]
[1728730462265,3.4066,146.81,146.76,11.7776]
[1728730462672,3.4066,146.81,146.76,3.4076]
[1728730462877,3.4066,146.81,146.77,8.37]
[1728730464478,8.37,146.83,146.77,8.37]
[1728730464671,8.37,146.83,146.78,8.37]
[1728730465271,3.4066,146.81,146.78,8.37]
[1728730466376,3.4066,146.81,146.77,11.7774]
[1728730469383,3.4066,146.81,146.78,3.4073]
[1728730469778,3.4066,146.81,146.77,8.37]
[1728730470575,3.4064,146.82,146.78,8.37]
[1728730470778,3.4064,146.82,146.79,8.37]
[1728730472175,8.37,146.82,146.78,8.37]
[1728730472381,3.4066,146.81,146.78,8.37]
[1728730474885,11.7765,146.82,146.78,8.37]
[1728730475183,8.37,146.82,146.78,8.37]
[1728730475577,3.4068,146.81,146.75,0.12502]
[1728730475773,8.37,146.82,146.75,0.12502]
[1728730475977,8.37,146.8,146.75,0.12502]
[1728730476175,8.37,146.8,146.76,8.37]
[1728730476578,3.4067,146.81,146.77,8.37]
[1728730479489,3.4063,146.83,146.79,8.37]
[1728730479883,8.37,146.84,146.78,8.37]
[1728730480082,11.7765,146.82,146.78,8.37]
[1728730480283,8.37,146.82,146.78,8.37]
[1728730481086,3.4063,146.83,146.78,8.37]
[1728730481294,3.38942093,146.86,146.78,8.37]
[1728730481486,8.37,146.84,146.78,8.37]
[1728730481793,3.4064,146.82,146.78,8.37]
[1728730481984,8.37,146.83,146.78,8.37]
[1728730483597,8.37,146.84,146.79,8.37]
[1728730484592,3.4061,146.83,146.79,8.37]
[1728730484893,11.7761,146.83,146.78,8.37]
[1728730485098,3.38942093,146.86,146.78,8.37]
[1728730485293,11.7759,146.84,146.78,8.37]
[1728730485486,8.37,146.84,146.78,8.37]
[1728730486496,3.4061,146.83,146.78,8.37]
[1728730492896,3.4061,146.83,146.78,11.75759635]
[1728730493400,3.4064,146.82,146.78,11.75759635]
[1728730493891,8.37,146.82,146.78,8.37]
[1728730494091,8.37,146.81,146.76,8.37]
[1728730494296,8.37,146.81,146.75,3.59097773]
[1728730494498,11.7768,146.81,146.76,8.37]
[1728730496600,11.7768,146.81,146.77,8.37]
[1728730496903,3.4068,146.81,146.77,8.37]
[1728730502205,3.5023953,146.87,146.77,8.37]
[1728730502411,8.37,146.84,146.79,8.37]
[1728730502606,8.37,146.83,146.79,8.37]
[1728730503607,8.37,146.81,146.76,8.37]
[1728730504407,8.37,146.79,146.75,0.12502]
[1728730504611,8.37,146.78,146.75,0.12502]
[1728730505106,8.37,146.79,146.75,0.12502]
[1728730506411,3.4073,146.78,146.75,0.12502]
[1728730506803,3.4073,146.78,146.75,8.49502]
[1728730508406,8.37,146.8,146.75,8.49502]
[1728730508618,3.4071,146.79,146.76,8.37]
[1728730510516,3.4071,146.79,146.75,0.12502]
[1728730510815,3.4073,146.78,146.75,0.12502]
[1728730511709,11.7773,146.78,146.75,0.12502]
[1728730512115,3.4075,146.77,146.75,0.12502]
[1728730513314,11.7775,146.77,146.75,0.12502]
[1728730514022,11.7777,146.76,146.75,0.12502]
[1728730517218,8.37,146.76,146.68,8.37]
[1728730517418,8.37,146.74,146.7,8.37]
[1728730518122,8.37,146.74,146.7,11.779]
[1728730518920,8.37,146.74,146.69,11.90432]
[1728730519617,8.37,146.73,146.69,11.90432]
[1728730520216,11.7786,146.73,146.69,11.90432]
[1728730523125,3.4086,146.73,146.69,11.90432]
[1728730523324,11.7786,146.73,146.69,11.90432]
[1728730524226,11.7786,146.73,146.69,3.53432]
[1728730524526,4.0299,146.78,146.69,8.49502]
[1728730524826,3.4082,146.74,146.7,11.779]
[1728730525919,3.4082,146.74,146.71,3.4087]
[1728730526427,8.37,146.75,146.71,3.4087]
[1728730526729,11.778,146.75,146.71,3.4087]
[1728730527121,11.778,146.75,146.7,8.37]
[1728730527329,11.7778,146.76,146.72,11.7784]
[1728730527622,8.37,146.75,146.71,8.37]
[1728730528231,11.7781,146.75,146.71,11.7787]
[1728730529421,3.4077,146.76,146.72,8.37]
[1728730529620,11.0475,146.78,146.73,8.37]
[1728730530015,3.4078,146.76,146.73,3.4083]
[1728730531524,8.37,146.75,146.73,3.4083]
[1728730534523,8.37,146.77,146.74,3.408]
[1728730535031,8.37,146.76,146.74,3.408]
[1728730535230,8.37,146.76,146.72,8.37]
[1728730535433,8.37,146.76,146.73,3.4083]
[1728730536036,8.37,146.75,146.71,11.71762703]
[1728730536233,8.37,146.74,146.72,3.4086]
[1728730536428,8.37,146.74,146.71,3.34762703]
[1728730536429,11.7778,146.76,146.71,8.37]
[1728730536835,8.37,146.76,146.71,8.37]
[1728730537038,8.37,146.76,146.73,3.4082]
[1728730541635,0.12502,146.81,146.74,8.37]
[1728730541836,0.12502,146.81,146.76,3.4076]
[1728730541837,3.4069,146.8,146.76,3.4076]
[1728730542039,11.7769,146.8,146.76,3.4076]
[1728730542537,8.49502,146.81,146.76,8.37]
[1728730543140,8.49502,146.81,146.78,3.4071]
[1728730543339,8.49502,146.81,146.76,8.37]
[1728730543740,0.12502,146.81,146.74,3.39125945]
[1728730544044,0.12502,146.81,146.79,8.37]
[1728730544435,0.12502,146.81,146.8,3.4068]
[1728730544636,0.12502,146.81,146.8,11.7768]
[1728730546144,8.37,146.85,146.8,8.37]
[1728730546845,11.7757,146.85,146.8,8.37]
[1728730547543,11.7757,146.85,146.81,3.4065]